bitfinex/quotes_BTCUSD_20250422
["timestamp","ask_amount","ask_price","bid_price","bid_amount"]
[1745283254488,0.00050519,87411.0,87410.0,1.08851865]
[1745283256437,0.00050519,87411.0,87410.0,1.04001865]
[1745283256813,0.00050519,87411.0,87410.0,1.04872635]
[1745283265334,0.0463,87443.0,87411.0,0.35454085]
[1745283265579,0.0463,87443.0,87421.0,0.69707477]
[1745283265580,0.0455,87434.0,87421.0,0.69707477]
[1745283266899,0.0455,87434.0,87421.0,1.03748946]
[1745283271617,0.0463,87443.0,87421.0,1.03748946]
[1745283271855,0.0004224,87446.0,87421.0,1.03748946]
[1745283271856,0.0004224,87446.0,87445.0,0.58325604]
[1745283272077,0.0004224,87446.0,87445.0,1.02620846]
[1745283272298,0.00087851,87446.0,87445.0,1.04392707]
[1745283274576,0.00287851,87446.0,87445.0,1.04392707]
[1745283277154,0.00187851,87446.0,87445.0,1.04392707]
[1745283277599,0.00187851,87446.0,87445.0,1.05268247]
[1745283278443,0.00287851,87446.0,87445.0,1.05268247]
[1745283278910,0.00187851,87446.0,87445.0,1.05268247]
[1745283279122,0.00087851,87446.0,87445.0,1.05268247]
[1745283290147,0.00087851,87446.0,87445.0,1.04392707]
[1745283290376,0.09477851,87446.0,87445.0,0.44295242]
[1745283290594,0.09477851,87446.0,87445.0,0.11375594]
[1745283290807,0.1369327,87446.0,87445.0,0.11375594]
[1745283291442,0.1369327,87446.0,87445.0,0.12829679]
[1745283291722,0.1389327,87446.0,87445.0,0.12829679]
[1745283292156,0.1399327,87446.0,87445.0,0.12829679]
[1745283294340,0.1399327,87446.0,87445.0,0.36984166]
[1745283295228,0.1379327,87446.0,87445.0,0.14112647]
[1745283295467,0.1389327,87446.0,87445.0,0.14112647]
[1745283295690,0.1399327,87446.0,87445.0,0.14112647]
[1745283296145,0.01176786,87488.0,87445.0,0.57702647]
[1745283296448,0.01142909,87496.0,87474.0,0.69693615]
[1745283296648,0.00055914,87475.0,87474.0,0.69693615]
[1745283297310,0.00055914,87475.0,87474.0,0.70857909]
[1745283298518,0.00055914,87475.0,87474.0,0.71718208]
[1745283298744,0.00055914,87475.0,87474.0,0.71818208]
[1745283298954,0.00055914,87475.0,87474.0,0.73101176]
[1745283300349,0.00055914,87475.0,87474.0,0.72240877]
[1745283302562,0.00055914,87475.0,87474.0,0.69503824]
[1745283303167,0.00055914,87475.0,87474.0,0.70957909]
[1745283303987,0.00155914,87475.0,87474.0,0.70857909]
[1745283307970,0.04965914,87475.0,87474.0,0.70857909]
[1745283308185,0.04965914,87475.0,87474.0,0.12829679]
[1745283308389,0.00155914,87475.0,87474.0,0.41442791]
[1745283308593,0.03694612,87475.0,87474.0,0.75442791]
[1745283308796,0.00155914,87475.0,87474.0,0.75442791]
[1745283314032,0.00155914,87475.0,87474.0,1.12932439]
[1745283314268,0.00055914,87475.0,87474.0,1.12932439]
[1745283314481,0.0004221,87481.0,87480.0,0.56862368]
[1745283314712,0.0004224,87499.0,87497.0,0.01454085]
[1745283314933,0.0004224,87499.0,87498.0,0.12829679]
[1745283315157,0.0004224,87499.0,87498.0,0.69687344]
[1745283315381,0.0004224,87499.0,87498.0,1.02606992]
[1745283315817,0.0004224,87499.0,87498.0,1.05674356]
[1745283316036,0.0004224,87499.0,87498.0,1.07181925]
[1745283316480,0.0004224,87499.0,87498.0,1.08042862]
[1745283316710,0.0004224,87499.0,87498.0,1.11110226]
[1745283316933,0.0024224,87499.0,87498.0,1.11110226]
[1745283317383,0.0004224,87499.0,87498.0,1.07181925]
[1745283317866,0.0014224,87499.0,87498.0,1.07181925]
[1745283320373,0.0014224,87499.0,87498.0,0.8432426]
[1745283320581,0.0014224,87499.0,87498.0,1.07181925]
[1745283321756,0.0014224,87499.0,87498.0,0.8432426]
[1745283321973,0.0014224,87499.0,87498.0,0.79749327]
[1745283322406,0.0468224,87499.0,87498.0,0.79749327]
[1745283322831,0.31075616,87499.0,87498.0,0.79749327]
[1745283323114,0.31075616,87499.0,87457.0,0.01143419]
[1745283323115,0.24006522,87477.0,87457.0,0.01143419]
[1745283323336,0.24009328,87466.0,87458.0,0.01143405]
[1745283323544,0.01143288,87467.0,87459.0,0.15148849]
[1745283323760,0.01143288,87467.0,87459.0,0.14005457]
[1745283323761,0.22866289,87465.0,87459.0,0.14005457]
[1745283323979,0.0114334,87463.0,87460.0,0.01454085]
[1745283324199,0.22866869,87463.0,87462.0,0.34]
[1745283324461,0.03535972,87464.0,87462.0,0.49323122]
[1745283324676,0.03535972,87464.0,87463.0,0.11375594]
[1745283324886,0.03535972,87464.0,87463.0,0.45375594]
[1745283325099,0.03535972,87464.0,87463.0,0.11375594]
[1745283325524,0.01143249,87470.0,87467.0,0.01143288]
[1745283325732,0.01143249,87470.0,87468.0,0.14005457]
[1745283325942,0.03537443,87469.0,87468.0,0.15459542]
[1745283326405,0.03537443,87469.0,87468.0,0.15517332]
[1745283326609,0.03537443,87469.0,87468.0,0.49517332]
[1745283326854,0.0454,87478.0,87476.0,0.01454085]
[1745283327053,0.0454,87478.0,87477.0,0.12829679]
[1745283327500,0.22864189,87474.0,87470.0,0.01454085]
[1745283327718,0.01143183,87475.0,87472.0,0.35454085]
[1745283327945,0.05683144,87478.0,87474.0,0.34]
[1745283327946,0.28746043,87478.0,87474.0,0.34]
[1745283328094,0.01143157,87477.0,87475.0,0.11375594]
[1745283329753,0.29146043,87478.0,87475.0,0.11375594]
[1745283329754,0.002,87478.0,87476.0,0.01454085]
[1745283329972,0.002,87478.0,87477.0,0.15459542]
[1745283330411,0.24005797,87479.0,87477.0,0.15459542]
[1745283330676,0.00027754,87478.0,87477.0,0.15459542]
[1745283331315,0.00227754,87478.0,87477.0,0.12829679]
[1745283331859,0.00227754,87478.0,87477.0,0.12887469]
[1745283332286,0.002,87478.0,87477.0,0.12887469]
[1745283333042,0.01143118,87480.0,87477.0,0.12887469]
[1745283333248,0.03637444,87478.0,87477.0,0.12887469]
[1745283333457,0.004,87478.0,87477.0,0.12887469]
[1745283333660,0.03937444,87478.0,87477.0,0.12887469]
[1745283333962,0.00127754,87478.0,87477.0,0.12887469]
[1745283334889,0.00327754,87478.0,87477.0,0.69750621]
[1745283335291,0.003,87478.0,87477.0,0.69750621]
[1745283339898,0.27932891,87478.0,87477.0,0.0005779]
[1745283340108,0.32732891,87478.0,87477.0,0.0005779]
[1745283340307,0.36272834,87478.0,87477.0,0.0005779]
[1745283340871,0.36072834,87478.0,87477.0,0.0005779]
[1745283341683,0.36272834,87478.0,87477.0,0.0005779]
[1745283342090,0.2401104,87460.0,87457.0,0.01157093]
[1745283342362,0.2401104,87460.0,87458.0,0.11375594]
[1745283343171,0.2401104,87460.0,87459.0,0.01454085]
[1745283343408,0.22868119,87458.0,87457.0,0.00071464]
[1745283343940,0.27560645,87458.0,87457.0,0.00071464]
[1745283345929,0.27660645,87458.0,87457.0,0.00071464]
[1745283346841,0.00122526,87458.0,87457.0,0.35769524]
[1745283347052,0.00222526,87458.0,87457.0,0.35769524]
[1745283347272,0.003,87458.0,87457.0,0.35769524]
[1745283347632,0.002,87458.0,87457.0,0.35769524]
[1745283348232,0.02129872,87501.0,87470.0,0.01143249]
[1745283348442,0.01143209,87473.0,87468.0,0.01143275]
[1745283348647,0.01143222,87472.0,87468.0,0.11375594]
[1745283348848,0.22865243,87469.0,87468.0,0.11375594]
[1745283349269,0.03539942,87469.0,87468.0,0.11375594]
[1745283351545,0.03639942,87469.0,87468.0,0.11375594]
[1745283351893,0.03639942,87469.0,87468.0,0.46829679]
[1745283352278,0.001,87469.0,87468.0,0.46829679]
[1745283354861,0.22965243,87469.0,87468.0,0.11375594]
[1745283355077,0.22865243,87469.0,87468.0,0.11375594]
[1745283355473,0.26389929,87469.0,87468.0,0.11375594]
[1745283356284,0.26489929,87469.0,87468.0,0.11375594]
[1745283356458,0.26489929,87469.0,87468.0,0.12513153]
[1745283357072,0.22868119,87458.0,87457.0,0.00071464]
[1745283357227,0.22868119,87458.0,87457.0,0.11447058]
[1745283357853,0.22868119,87458.0,87457.0,0.12901143]
[1745283358294,0.22868119,87458.0,87457.0,0.46901143]
[1745283358492,0.22868119,87458.0,87457.0,0.34071464]
[1745283358753,0.22968119,87458.0,87457.0,0.34071464]
[1745283359152,0.23068119,87458.0,87457.0,0.34071464]
[1745283361018,0.23068119,87458.0,87457.0,0.00071464]
[1745283361744,0.22868119,87458.0,87457.0,0.00071464]
[1745283363324,0.27718119,87458.0,87457.0,0.00071464]
[1745283366820,0.27718119,87458.0,87457.0,0.11447058]
[1745283366970,0.22868119,87458.0,87457.0,0.12591764]
[1745283367183,0.22868119,87458.0,87457.0,0.11447058]
[1745283369350,0.24010975,87460.0,87458.0,0.01454085]
[1745283369581,0.24010975,87460.0,87459.0,0.12829679]
[1745283369783,0.27498545,87460.0,87459.0,0.12829679]
[1745283372325,0.27498545,87460.0,87459.0,0.12887469]
[1745283372688,0.27498545,87460.0,87459.0,0.01696725]
[1745283372896,0.27498545,87460.0,87459.0,0.0005779]
[1745283377072,0.32168545,87460.0,87459.0,0.0005779]
[1745283379355,0.36918545,87460.0,87459.0,0.0005779]
[1745283382675,0.36918545,87460.0,87446.0,0.0008436]
[1745283382676,0.22870996,87447.0,87446.0,0.0008436]
[1745283382889,0.27770996,87447.0,87446.0,0.0008436]
[1745283383115,0.31263081,87447.0,87446.0,0.0008436]
[1745283387277,0.31263081,87447.0,87442.0,1e-08]
[1745283387278,0.22872042,87443.0,87442.0,1e-08]
[1745283387502,0.27782042,87443.0,87442.0,1e-08]
[1745283387708,0.27784396,87434.0,87433.0,0.0008434]
[1745283388122,0.31279881,87434.0,87433.0,0.0008434]
[1745283388804,0.35899881,87434.0,87433.0,0.0008434]
[1745283389145,0.47275475,87434.0,87433.0,1e-08]
[1745283389354,0.35899881,87434.0,87433.0,1e-08]
[1745283393550,0.7748988,87434.0,87433.0,1e-08]
[1745283393775,0.88865085,87434.0,87433.0,1e-08]
[1745283395161,1.00240679,87434.0,87433.0,1e-08]
[1745283395568,1.00240679,87434.0,87424.0,0.0008442]
[1745283395569,0.01143981,87414.0,87411.0,0.0008442]
[1745283395794,0.22880153,87412.0,87411.0,0.0008442]
[1745283396005,0.26350733,87412.0,87411.0,0.0008442]
[1745283397001,0.26350733,87412.0,87411.0,0.00130031]
[1745283401451,0.0347058,87412.0,87411.0,0.00130031]
[1745283401650,0.24023863,87414.0,87411.0,0.00130031]
[1745283401853,0.26361173,87413.0,87411.0,0.00130031]
[1745283403262,0.0498,87412.0,87411.0,0.00130031]
[1745283404146,0.16355594,87412.0,87411.0,1e-08]
[1745283405499,0.16366085,87412.0,87411.0,1e-08]
[1745283413924,0.04990491,87412.0,87411.0,1e-08]
[1745283414286,0.17942491,87412.0,87411.0,1e-08]
[1745283414890,0.21402371,87412.0,87411.0,1e-08]
[1745283415708,0.03470371,87412.0,87411.0,1e-08]
[1745283420349,0.03470371,87412.0,87411.0,0.2234968]
[1745283420596,0.03470371,87412.0,87411.0,0.26987244]
[1745283421660,0.03470371,87412.0,87411.0,0.2234968]
[1745283422124,0.03470371,87412.0,87411.0,0.23494249]
[1745283422503,0.22878321,87419.0,87417.0,0.01454085]
[1745283422705,0.01143863,87423.0,87413.0,0.01143994]
[1745283422706,0.01143798,87428.0,87419.0,0.02598001]
[1745283422965,0.01143798,87428.0,87418.0,0.11375594]
[1745283422966,0.01143811,87427.0,87421.0,0.01454085]
[1745283423161,0.24020313,87426.0,87423.0,0.01454085]
[1745283423361,0.22877013,87424.0,87423.0,0.01454085]
[1745283423533,0.22877013,87424.0,87423.0,0.15606128]
[1745283423735,0.22877013,87424.0,87423.0,0.20226128]
[1745283424453,0.01143785,87429.0,87425.0,0.01454085]
[1745283424663,0.01143785,87429.0,87423.0,0.17449679]
[1745283424664,0.24019764,87428.0,87427.0,0.01454085]
[1745283424861,0.24019764,87428.0,87427.0,0.12829679]
[1745283425220,0.22875966,87428.0,87427.0,0.12829679]
[1745283425645,0.22875966,87428.0,87427.0,0.17629679]
[1745283426061,0.22890645,87428.0,87427.0,0.17629679]
[1745283426270,0.00014679,87428.0,87427.0,0.21888654]
[1745283426478,0.00014679,87428.0,87427.0,0.44764882]
[1745283426884,0.00014679,87428.0,87427.0,0.40505907]
[1745283427123,0.22869463,87453.0,87443.0,0.01454085]
[1745283427331,0.01143445,87455.0,87445.0,0.01454085]
[1745283427332,0.01143536,87448.0,87445.0,0.01454085]
[1745283427541,0.22890644,87446.0,87445.0,0.01454085]
[1745283427746,0.22871257,87446.0,87445.0,0.12829679]
[1745283427929,0.22890644,87446.0,87445.0,0.12829679]
[1745283428547,0.22936198,87446.0,87445.0,0.12829679]
[1745283429362,0.22936198,87446.0,87445.0,0.18942639]
[1745283430000,0.26417112,87446.0,87445.0,0.18942639]
[1745283432377,0.26417112,87446.0,87445.0,0.13972967]
[1745283434032,0.26417112,87446.0,87445.0,0.11375594]
[1745283434646,0.26417112,87446.0,87434.0,0.0457]
[1745283434647,0.2287335,87438.0,87437.0,0.02619592]
[1745283434852,0.26373652,87438.0,87437.0,0.13995186]
[1745283435052,0.26373652,87438.0,87437.0,0.12829679]
[1745283435758,0.03500302,87438.0,87437.0,0.75407994]
[1745283436158,0.00045554,87446.0,87437.0,0.75407994]
[1745283436159,0.00045554,87446.0,87444.0,0.01454085]
[1745283436358,0.00045554,87446.0,87445.0,0.12829679]
[1745283436511,0.00045554,87446.0,87445.0,0.35701198]
[1745283439009,0.00045554,87446.0,87445.0,0.74271198]
[1745283447618,0.00045554,87446.0,87445.0,1.12040846]
[1745283448047,0.01185355,87481.0,87468.0,0.6330959]
[1745283448260,0.01143131,87479.0,87468.0,0.74685184]
[1745283448509,0.00055897,87469.0,87468.0,0.46829679]
[1745283450483,0.2292114,87469.0,87468.0,0.46829679]
[1745283450689,0.2642721,87469.0,87468.0,0.46829679]
[1745283450926,0.2642721,87469.0,87463.0,0.22866776]
[1745283450927,0.22867073,87462.0,87461.0,0.32919648]
[1745283451173,0.22867073,87462.0,87461.0,0.78295242]
[1745283451504,0.22867073,87462.0,87461.0,0.44295242]
[1745283451717,0.22867073,87462.0,87440.0,0.21845555]
[1745283451718,0.01143562,87446.0,87442.0,0.01143615]
[1745283451926,0.0114351,87450.0,87446.0,0.01454085]
[1745283452152,0.0114351,87450.0,87448.0,0.01454085]
[1745283452371,0.26376543,87449.0,87448.0,0.01454085]
[1745283452580,0.26376543,87449.0,87448.0,0.46829679]
[1745283454360,0.0350607,87449.0,87448.0,0.46829679]
[1745283455019,0.01143484,87452.0,87448.0,0.46829679]
[1745283455020,0.01143484,87452.0,87448.0,0.47973215]
[1745283455158,0.01143484,87452.0,87450.0,0.01454085]
[1745283455377,0.03509224,87451.0,87450.0,0.01454085]
[1745283455579,0.26379174,87451.0,87450.0,0.12829679]
[1745283456192,0.26379174,87451.0,87450.0,0.14764512]
[1745283456593,0.03509224,87451.0,87450.0,0.48764512]
[1745283456913,0.22866266,87466.0,87456.0,0.01454085]
[1745283456914,0.01143366,87461.0,87456.0,0.01454085]
[1745283457115,0.01143366,87461.0,87459.0,0.01454085]
[1745283457299,0.01143327,87464.0,87460.0,0.13310427]
[1745283457470,0.01143288,87467.0,87462.0,0.02597438]
[1745283457674,0.01143288,87467.0,87464.0,0.01454085]
[1745283457871,0.01143288,87467.0,87466.0,0.01454085]
[1745283458157,0.01143275,87468.0,87466.0,0.12829679]
[1745283458346,0.01143236,87471.0,87468.0,0.01454085]
[1745283458569,0.01143196,87474.0,87468.0,0.46829679]
[1745283458757,0.01143183,87475.0,87468.0,0.55341903]
[1745283458993,0.01143183,87475.0,87468.0,0.48764512]
[1745283459131,0.01143183,87475.0,87468.0,0.49830876]
[1745283460249,0.01143118,87480.0,87468.0,0.49830876]
[1745283460596,0.01143144,87478.0,87468.0,0.49830876]
[1745283461186,0.01143118,87480.0,87468.0,0.48764512]
[1745283461391,0.0004225,87481.0,87468.0,0.48764512]
[1745283461625,0.01185355,87481.0,87468.0,0.48764512]
[1745283461915,0.01143118,87480.0,87468.0,0.48764512]
[1745283462810,0.0004225,87481.0,87468.0,0.53354512]
[1745283463445,1e-08,87469.0,87468.0,0.95555158]
[1745283463713,0.0004225,87481.0,87479.0,0.01454085]
[1745283463939,0.0004225,87481.0,87480.0,0.79749327]
[1745283464570,0.0004225,87481.0,87480.0,0.8168416]
[1745283470152,0.0004225,87481.0,87480.0,0.46230075]
[1745283470413,0.03586754,87481.0,87480.0,0.52421487]
[1745283471267,0.03586754,87481.0,87480.0,0.52413441]
[1745283472248,0.03586754,87481.0,87480.0,0.46222029]
[1745283472751,0.03586754,87481.0,87480.0,0.13302381]
[1745283479456,0.03586754,87481.0,87480.0,0.01926787]
[1745283484740,0.03586754,87481.0,87480.0,0.14756466]
[1745283484960,0.03586754,87481.0,87480.0,0.37618834]
[1745283485192,0.0004225,87481.0,87480.0,0.37618834]
[1745283488517,0.0004225,87481.0,87480.0,0.71618834]
[1745283490623,0.0004225,87481.0,87480.0,0.69692047]
[1745283491358,0.0004225,87481.0,87480.0,0.71624287]
[1745283492974,0.0004225,87481.0,87480.0,0.69692047]
[1745283493453,0.0004225,87481.0,87480.0,1.02611695]
[1745283493868,1.14795967,87614.0,87480.0,1.02611695]
[1745283493869,0.0004224,87499.0,87492.0,0.22859143]
[1745283494147,0.0004224,87499.0,87498.0,0.69687344]
[1745283494333,0.00055904,87499.0,87498.0,0.69687344]
[1745283496049,0.0004222,87510.0,87509.0,0.58308877]
[1745283496252,9.656e-05,87510.0,87509.0,0.69684471]
[1745283496891,9.656e-05,87510.0,87509.0,0.74304471]
[1745283497306,9.656e-05,87510.0,87509.0,1.07224119]
[1745283498774,9.656e-05,87510.0,87509.0,1.02604119]
[1745283499848,9.656e-05,87510.0,87509.0,1.07224119]
[1745283503814,9.656e-05,87510.0,87509.0,1.02604119]
[1745283505128,9.656e-05,87510.0,87509.0,0.11375594]
[1745283505345,0.03560044,87510.0,87509.0,0.11375594]
[1745283505586,9.656e-05,87510.0,87509.0,0.12829679]
[1745283505853,0.03560044,87510.0,87509.0,0.11375594]
[1745283506279,0.03560044,87510.0,87509.0,0.12829679]
[1745283507811,0.03560044,87510.0,87509.0,0.69684471]
[1745283508018,0.034933,87510.0,87509.0,0.69684471]
[1745283508259,0.01142582,87521.0,87515.0,0.5830731]
[1745283508477,0.01142609,87519.0,87515.0,0.69682904]
[1745283508683,0.0004921,87522.0,87515.0,0.69682904]
[1745283508886,0.01142582,87521.0,87515.0,0.69682904]
[1745283509305,0.0004921,87522.0,87515.0,0.69682904]
[1745283511002,0.0004921,87522.0,87515.0,1.02602552]
[1745283511209,0.0004921,87522.0,87515.0,1.02702552]
[1745283511571,0.0004921,87522.0,87515.0,1.15510552]
[1745283513844,0.0004222,87546.0,87535.0,0.58302088]
[1745283514059,0.01350806,87536.0,87535.0,1.0259733]
[1745283515964,0.0004222,87546.0,87544.0,0.01454085]
[1745283516163,0.00055878,87546.0,87545.0,0.46829679]
[1745283517018,0.00069,87550.0,87549.0,0.58298435]
[1745283517368,0.00069,87550.0,87549.0,0.82478029]
[1745283518810,0.00069,87550.0,87549.0,0.83642042]
[1745283519600,0.000422,87552.0,87551.0,0.58297913]
[1745283519601,1e-08,87552.0,87551.0,0.58297913]
[1745283519814,1e-08,87552.0,87551.0,0.72740815]
[1745283520026,1e-08,87552.0,87551.0,0.77320815]
[1745283520447,1e-08,87552.0,87551.0,0.80481665]
[1745283520646,1e-08,87552.0,87551.0,0.85251665]
[1745283520859,1e-08,87552.0,87551.0,0.85151665]
[1745283521840,1e-08,87552.0,87551.0,0.82090815]
[1745283522259,1e-08,87552.0,87551.0,0.82190815]
[1745283522450,1e-08,87552.0,87551.0,0.79123507]
[1745283522710,1e-08,87552.0,87551.0,1.10692349]
[1745283523214,1e-08,87552.0,87551.0,1.05922349]
[1745283523476,1e-08,87552.0,87551.0,0.99888264]
[1745283523704,1e-08,87552.0,87551.0,1.01342349]
[1745283523924,1e-08,87552.0,87551.0,0.99888264]
[1745283524139,1e-08,87552.0,87551.0,0.43044436]
[1745283524359,1e-08,87552.0,87551.0,0.65888264]
[1745283524777,1e-08,87552.0,87551.0,0.43044436]
[1745283525428,0.0360354,87552.0,87551.0,0.43044436]
[1745283525640,0.0360354,87552.0,87551.0,0.70535383]
[1745283526018,1e-08,87552.0,87551.0,0.4914564]
[1745283526240,0.0360354,87552.0,87551.0,0.4914564]
[1745283526844,0.0360354,87552.0,87551.0,0.17576798]
[1745283527784,0.0858354,87552.0,87551.0,0.11475594]
[1745283527988,0.0858354,87552.0,87551.0,0.12929679]
[1745283529981,0.0858354,87552.0,87551.0,0.001]
[1745283538908,0.0858354,87552.0,87551.0,0.12929679]
[1745283539122,0.0858354,87552.0,87551.0,0.16849798]
[1745283539753,0.0858354,87552.0,87551.0,0.39693626]
[1745283539925,0.00100001,87552.0,87551.0,0.39693626]
[1745283540357,0.00100001,87552.0,87551.0,0.35773507]
[1745283540574,0.03683263,87552.0,87551.0,0.35773507]
[1745283540737,0.0013805,87552.0,87551.0,0.35773507]
[1745283541531,0.00100001,87552.0,87551.0,0.35773507]
[1745283541741,0.03683263,87552.0,87551.0,0.35773507]
[1745283542178,0.03683263,87552.0,87551.0,0.12929679]
[1745283542586,0.03683263,87552.0,87551.0,0.35773507]
[1745283543006,0.00100001,87552.0,87551.0,0.35773507]
[1745283545425,0.00100001,87552.0,87551.0,0.74323507]
[1745283546107,0.00100001,87552.0,87551.0,1.17098264]
[1745283546526,0.00100001,87552.0,87551.0,1.17946437]
[1745283547402,0.23976907,87585.0,87551.0,1.17946437]
[1745283547403,0.0472,87592.0,87568.0,0.22839393]
[1745283547629,0.0472,87592.0,87568.0,0.99912158]
[1745283547837,0.0472,87592.0,87568.0,0.99683828]
[1745283548040,0.0472,87592.0,87568.0,1.01137913]
[1745283548906,1e-08,87569.0,87568.0,1.04205221]
[1745283549091,1e-08,87569.0,87568.0,1.05827913]
[1745283550279,0.05831565,87599.0,87568.0,1.05827913]
[1745283550280,0.0469,87611.0,87586.0,0.56834699]
[1745283550508,0.0585524,87622.0,87586.0,0.56834699]
[1745283550509,0.00055853,87587.0,87586.0,1.05823219]
[1745283552481,0.00055853,87587.0,87586.0,1.06671563]
[1745283552678,0.0130524,87622.0,87597.0,0.58285917]
[1745283552882,0.01141278,87621.0,87597.0,0.69661511]
[1745283553056,0.0130524,87622.0,87597.0,0.69661511]
[1745283553429,0.0130524,87622.0,87597.0,0.75789669]
[1745283553656,0.0130524,87622.0,87597.0,0.72728819]
[1745283553863,0.0130524,87622.0,87597.0,1.0415543]
[1745283554039,0.0130524,87622.0,87597.0,1.0721628]
[1745283554284,0.0130524,87622.0,87597.0,1.0415543]
[1745283554466,0.0130524,87622.0,87597.0,1.05314933]
[1745283554895,0.0130524,87622.0,87597.0,1.08375783]
[1745283555614,0.0130524,87622.0,87597.0,1.02247625]
[1745283555840,1e-08,87604.0,87603.0,0.58384353]
[1745283556053,1e-08,87604.0,87603.0,0.82515947]
[1745283556258,1e-08,87604.0,87603.0,1.00583255]
[1745283556471,1e-08,87604.0,87603.0,1.13284105]
[1745283556895,0.0004221,87623.0,87622.0,0.35554085]
[1745283556896,1e-08,87623.0,87622.0,0.35554085]
[1745283557049,0.002,87639.0,87637.0,0.01454085]
[1745283557257,0.002,87639.0,87638.0,1.01305602]
[1745283557460,0.0024552,87639.0,87638.0,1.07205598]
[1745283557677,0.0024552,87639.0,87638.0,1.19961598]
[1745283557911,0.0024552,87639.0,87638.0,1.1383344]
[1745283558255,0.0024552,87639.0,87638.0,1.0107744]
[1745283558887,0.0024552,87639.0,87638.0,0.11375594]
[1745283559107,0.03957521,87639.0,87638.0,0.11375594]
[1745283559556,0.03957521,87639.0,87638.0,0.12513153]
[1745283560812,0.03957521,87639.0,87638.0,0.11375594]
[1745283561019,0.08647521,87639.0,87638.0,0.11375594]
[1745283562653,0.08647521,87639.0,87615.0,0.01141357]
[1745283562654,0.01141135,87632.0,87615.0,0.01141357]
[1745283562889,0.01141135,87632.0,87610.0,0.13857422]
[1745283562890,0.23965958,87625.0,87623.0,0.11375594]
[1745283563085,0.23965958,87625.0,87605.0,0.22829487]
[1745283563086,0.01141461,87607.0,87602.0,0.01141526]
[1745283563364,0.23970046,87610.0,87605.0,0.23971216]
[1745283563517,0.01141422,87610.0,87607.0,0.02595546]
[1745283563745,0.23969101,87613.0,87608.0,0.12517042]
[1745283563746,0.01141396,87612.0,87608.0,0.12517042]
[1745283564480,0.01141409,87611.0,87608.0,0.11375594]
[1745283564654,0.239698,87611.0,87608.0,0.11375594]
[1745283565116,0.22828704,87609.0,87608.0,0.12829679]
[1745283565346,0.239698,87611.0,87609.0,0.01454085]
[1745283565556,0.239698,87611.0,87610.0,0.12829679]
[1745283566143,0.239698,87611.0,87610.0,0.19185699]
[1745283566347,0.239698,87611.0,87610.0,0.12829679]
[1745283566591,0.24023233,87611.0,87610.0,0.12829679]
[1745283567947,0.24023233,87611.0,87603.0,0.03100268]
[1745283567948,0.22830007,87604.0,87603.0,0.03100268]
[1745283568157,0.22830007,87604.0,87603.0,0.14475862]
[1745283568365,0.22881616,87604.0,87603.0,0.14475862]
[1745283568559,0.22881616,87604.0,87603.0,0.01646183]
[1745283569080,0.27801616,87604.0,87603.0,0.01646183]
[1745283569517,0.32431616,87604.0,87603.0,0.01646183]
[1745283570858,0.32431616,87604.0,87603.0,0.14475862]
[1745283570859,0.04971609,87604.0,87603.0,0.14475862]
[1745283571054,0.04971609,87604.0,87603.0,0.15923448]
[1745283571204,0.04971609,87604.0,87603.0,0.01646183]
[1745283571411,0.05071609,87604.0,87603.0,0.01646183]
[1745283572422,0.00151609,87604.0,87603.0,0.48475862]
[1745283572884,0.001,87604.0,87603.0,0.48475862]
[1745283573748,0.001,87604.0,87603.0,0.7130613]
[1745283578526,0.001,87604.0,87603.0,0.69852045]
[1745283578737,0.0505,87604.0,87603.0,0.13021777]
[1745283579142,0.0868512,87604.0,87603.0,0.13021777]
[1745283579687,0.0373512,87604.0,87603.0,0.13021777]
[1745283580193,0.0373512,87604.0,87603.0,0.14475862]
[1745283582151,0.0363512,87604.0,87603.0,0.14475862]
[1745283583300,0.0363512,87604.0,87603.0,0.3730613]
[1745283583507,0.0363512,87604.0,87603.0,0.7130613]
[1745283583633,0.0495,87618.0,87615.0,0.01141357]
[1745283583835,0.04963648,87618.0,87616.0,0.11375594]
[1745283584035,0.03637247,87617.0,87616.0,0.11375594]
[1745283585773,0.03637247,87617.0,87616.0,0.35656559]
[1745283585970,0.00013648,87618.0,87617.0,0.01454085]
[1745283586174,0.00013648,87618.0,87617.0,0.12829679]
[1745283586960,0.03650895,87618.0,87617.0,0.35656299]
[1745283587718,0.03650895,87618.0,87617.0,0.69656299]
[1745283588139,0.00013648,87618.0,87617.0,0.69756299]
[1745283589411,0.00013648,87618.0,87617.0,0.68302214]
[1745283589607,0.00013648,87618.0,87617.0,0.69756299]
[1745283590931,0.00013648,87618.0,87617.0,0.12929679]
[1745283591278,0.00013648,87618.0,87617.0,0.11475594]
[1745283591683,0.03668159,87618.0,87617.0,0.11475594]
[1745283592105,0.03668159,87618.0,87617.0,0.12929679]
[1745283594328,0.03668159,87618.0,87617.0,0.35756299]
[1745283594812,0.00013648,87618.0,87617.0,0.35756299]
[1745283595236,0.00013648,87618.0,87617.0,0.69756299]
[1745283595460,0.00013648,87618.0,87617.0,1.0118291]
[1745283596131,0.00013648,87618.0,87617.0,0.69756299]
[1745283597982,0.00013648,87618.0,87617.0,0.74656299]
[1745283600341,0.00013648,87618.0,87617.0,0.69756299]
[1745283600559,0.00013648,87618.0,87617.0,0.68302214]
[1745283600763,0.00013648,87618.0,87617.0,0.45475594]
[1745283600971,0.00013648,87618.0,87617.0,0.11475594]
[1745283601218,0.22840007,87618.0,87617.0,0.11475594]
[1745283601370,0.27470007,87618.0,87617.0,0.11475594]
[1745283602785,0.27470007,87618.0,87617.0,0.12737296]
[1745283603613,0.27470007,87618.0,87617.0,0.11475594]
[1745283604057,0.27470007,87618.0,87606.0,0.25424835]
[1745283604058,0.2283496,87585.0,87584.0,0.01016243]
[1745283604256,0.2283496,87585.0,87561.0,0.0008436]
[1745283604257,0.22836003,87581.0,87561.0,0.0008436]
[1745283605860,0.22839393,87568.0,87561.0,0.0008436]
[1745283606060,0.22840958,87562.0,87561.0,0.0008436]
[1745283606265,0.22840958,87562.0,87561.0,0.00098013]
[1745283608533,0.27540958,87562.0,87561.0,0.00098013]
[1745283609391,0.01142021,87564.0,87561.0,0.00098013]
[1745283609620,0.22840697,87563.0,87561.0,0.00098013]
[1745283610455,0.22838579,87572.0,87566.0,0.01454085]
[1745283610666,0.01141917,87572.0,87568.0,0.01454085]
[1745283610843,0.01141917,87572.0,87570.0,0.01454085]
[1745283611000,0.01141917,87572.0,87571.0,0.12829679]
[1745283612109,0.22837621,87575.0,87572.0,0.01454085]
[1745283612313,0.22837621,87575.0,87573.0,0.04169095]
[1745283613228,0.23979499,87575.0,87573.0,0.01454085]
[1745283614608,0.01141826,87579.0,87574.0,0.01141891]
[1745283614814,0.01141865,87576.0,87573.0,0.01454085]
[1745283615433,0.23979395,87576.0,87573.0,0.01454085]
[1745283616399,0.22837828,87574.0,87573.0,0.01454085]
[1745283617486,0.26853013,87574.0,87573.0,0.01454085]
[1745283617689,0.22840762,87563.0,87548.0,0.22844566]
[1745283618006,0.22840762,87563.0,87562.0,0.12829679]
[1745283618632,0.22840762,87563.0,87553.0,0.35454085]
[1745283618991,0.22840762,87563.0,87554.0,0.01142152]
[1745283619205,0.22840762,87563.0,87545.0,0.23987413]